[Event "Titled Tuesday Blitz February 28 Early 2023"]
[White "Berkes, Ferenc"]
[Black "Devaev, Alexander"]
[WhiteFideId "718572"]
[BlackFideId "4169395"]
[WhiteElo "2664"]
[BlackElo "2225"]
[Result "0-1"]
[Round "10"]
[TimeControl "180+2"]
[Date "2023.02.28"]
[WhiteClock "0:00:23"]
[BlackClock "0:00:06"]

1. e4 {[%clk 0:02:22]}  c6 {[%clk 0:02:02]} 2. Nf3 {[%clk 0:02:20]}  d5 {[%clk 0:02:01]} 3. d3 {[%clk 0:02:20]}  Bg4 {[%clk 0:01:59]} 4. Nbd2 {[%clk 0:02:15]}  e6 {[%clk 0:01:59]} 5. h3 {[%clk 0:02:14]}  Bh5 {[%clk 0:01:57]} 6. g3 {[%clk 0:02:07]}  Nd7 {[%clk 0:01:55]} 7. Bg2 {[%clk 0:02:07]}  Bxf3 {[%clk 0:01:45]} 8. Nxf3 {[%clk 0:02:03]}  Ne7 {[%clk 0:01:33]} 9. O-O {[%clk 0:02:02]}  Ng6 {[%clk 0:01:33]} 10. Qe2 {[%clk 0:02:02]}  Be7 {[%clk 0:01:28]} 11. Bd2 {[%clk 0:01:57]}  O-O {[%clk 0:01:28]} 12. h4 {[%clk 0:01:52]}  Re8 {[%clk 0:01:27]} 13. h5 {[%clk 0:01:51]}  Ngf8 {[%clk 0:01:28]} 14. Rae1 {[%clk 0:01:48]}  Qb6 {[%clk 0:01:23]} 15. b3 {[%clk 0:01:46]}  a5 {[%clk 0:01:21]} 16. a4 {[%clk 0:01:45]}  Bb4 {[%clk 0:01:21]} 17. h6 {[%clk 0:01:41]}  g6 {[%clk 0:01:17]} 18. Nh2 {[%clk 0:01:41]}  Bxd2 {[%clk 0:01:14]} 19. Qxd2 {[%clk 0:01:40]}  Qb4 {[%clk 0:01:05]} 20. c3 {[%clk 0:01:34]}  Qxb3 {[%clk 0:00:41]} 21. Rb1 {[%clk 0:01:34]}  Qxa4 {[%clk 0:00:38]} 22. Rxb7 {[%clk 0:01:34]}  Reb8 {[%clk 0:00:36]} 23. Rfb1 {[%clk 0:01:29]}  Rxb7 {[%clk 0:00:35]} 24. Rxb7 {[%clk 0:01:29]}  Rb8 {[%clk 0:00:36]} 25. Rxb8 {[%clk 0:01:28]}  Nxb8 {[%clk 0:00:36]} 26. Ng4 {[%clk 0:01:26]}  Nbd7 {[%clk 0:00:36]} 27. Qf4 {[%clk 0:01:25]}  Qa1+ {[%clk 0:00:37]} 28. Kh2 {[%clk 0:01:18]}  Qxc3 {[%clk 0:00:33]} 29. e5 {[%clk 0:01:18]}  Qb4 {[%clk 0:00:22]} 30. d4 {[%clk 0:01:17]}  Qe7 {[%clk 0:00:21]} 31. Nf6+ {[%clk 0:01:14]}  Nxf6 {[%clk 0:00:20]} 32. exf6 {[%clk 0:01:15]}  Qa7 {[%clk 0:00:16]} 33. Qd6 {[%clk 0:01:12]}  a4 {[%clk 0:00:14]} 34. Qa3 {[%clk 0:01:06]}  Qa8 {[%clk 0:00:14]} 35. g4 {[%clk 0:01:03]}  Nd7 {[%clk 0:00:14]} 36. g5 {[%clk 0:01:03]}  Nb6 {[%clk 0:00:15]} 37. Bf1 {[%clk 0:01:01]}  Nc4 {[%clk 0:00:13]} 38. Bxc4 {[%clk 0:01:00]}  dxc4 {[%clk 0:00:13]} 39. Kg3 {[%clk 0:00:59]}  Qb8+ {[%clk 0:00:13]} 40. Kg2 {[%clk 0:00:57]}  Qb7 {[%clk 0:00:12]} 41. Qe7 {[%clk 0:00:54]}  Qa8 {[%clk 0:00:10]} 42. Qa3 {[%clk 0:00:41]}  c5+ {[%clk 0:00:10]} 43. d5 {[%clk 0:00:42]}  exd5 {[%clk 0:00:10]} 44. f3 {[%clk 0:00:38]}  d4 {[%clk 0:00:10]} 45. Qxc5 {[%clk 0:00:37]}  c3 {[%clk 0:00:10]} 46. Qxd4 {[%clk 0:00:37]}  Qc8 {[%clk 0:00:07]} 47. Qxa4 {[%clk 0:00:23]}  c2 {[%clk 0:00:08]} 48. Qd7 {[%clk 0:00:23]}  Qxd7 {[%clk 0:00:06]} 0-1


[Site "https://www.chess.com"]

[Event "Titled Tuesday Blitz February 28 Early 2023"]
[White "Pein, Jonathan"]
[Black "Yurasova, Daria"]
[WhiteFideId "417092"]
[BlackFideId "34146919"]
[WhiteElo "2151"]
[BlackElo "2134"]
[Result "0-1"]
[Round "10"]
[TimeControl "180+2"]
[Date "2023.02.28"]
[WhiteClock "0:00:05"]
[BlackClock "0:00:09"]

1. e4 {[%clk 0:02:52]}  e5 {[%clk 0:03:00]} 2. Nf3 {[%clk 0:02:52]}  Nc6 {[%clk 0:03:00]} 3. Nc3 {[%clk 0:02:53]}  Nf6 {[%clk 0:03:00]} 4. d4 {[%clk 0:02:53]}  exd4 {[%clk 0:03:00]} 5. Nd5 {[%clk 0:02:54]}  Be7 {[%clk 0:02:56]} 6. Bf4 {[%clk 0:02:53]}  d6 {[%clk 0:02:54]} 7. Nxd4 {[%clk 0:02:54]}  O-O {[%clk 0:02:53]} 8. Nb5 {[%clk 0:02:53]}  Nxd5 {[%clk 0:02:48]} 9. exd5 {[%clk 0:02:54]}  Ne5 {[%clk 0:02:48]} 10. Qd2 {[%clk 0:02:51]}  Bf6 {[%clk 0:02:44]} 11. O-O-O {[%clk 0:02:48]}  a6 {[%clk 0:02:42]} 12. Nc3 {[%clk 0:02:48]}  b5 {[%clk 0:02:41]} 13. Ne4 {[%clk 0:02:46]}  Nc4 {[%clk 0:02:31]} 14. Nxf6+ {[%clk 0:02:37]}  Qxf6 {[%clk 0:02:31]} 15. Qd4 {[%clk 0:02:28]}  Qxd4 {[%clk 0:02:22]} 16. Rxd4 {[%clk 0:02:29]}  Nb6 {[%clk 0:02:23]} 17. Be2 {[%clk 0:02:17]}  Bb7 {[%clk 0:02:22]} 18. Bf3 {[%clk 0:02:17]}  Rfe8 {[%clk 0:02:21]} 19. b3 {[%clk 0:02:13]}  Nd7 {[%clk 0:02:20]} 20. Kd1 {[%clk 0:01:56]}  Ne5 {[%clk 0:02:19]} 21. Be2 {[%clk 0:01:57]}  Ng6 {[%clk 0:02:16]} 22. Be3 {[%clk 0:01:54]}  Ne7 {[%clk 0:02:14]} 23. Bf3 {[%clk 0:01:42]}  Nf5 {[%clk 0:02:14]} 24. Rd3 {[%clk 0:01:42]}  Nxe3+ {[%clk 0:02:14]} 25. Rxe3 {[%clk 0:01:43]}  Rxe3 {[%clk 0:01:53]} 26. fxe3 {[%clk 0:01:44]}  Re8 {[%clk 0:01:51]} 27. Kd2 {[%clk 0:01:42]}  f5 {[%clk 0:01:46]} 28. c4 {[%clk 0:01:38]}  Kf7 {[%clk 0:01:42]} 29. Rc1 {[%clk 0:01:33]}  Re7 {[%clk 0:01:40]} 30. h4 {[%clk 0:01:32]}  g6 {[%clk 0:01:38]} 31. a4 {[%clk 0:01:14]}  b4 {[%clk 0:01:33]} 32. a5 {[%clk 0:01:10]}  Bc8 {[%clk 0:01:32]} 33. c5 {[%clk 0:01:05]}  dxc5 {[%clk 0:01:25]} 34. Rxc5 {[%clk 0:01:06]}  Bb7 {[%clk 0:01:24]} 35. Kd3 {[%clk 0:00:49]}  Kf6 {[%clk 0:01:19]} 36. Kd4 {[%clk 0:00:49]}  h6 {[%clk 0:01:08]} 37. Rc4 {[%clk 0:00:42]}  g5 {[%clk 0:01:03]} 38. Rxb4 {[%clk 0:00:34]}  Bc8 {[%clk 0:00:59]} 39. hxg5+ {[%clk 0:00:27]}  hxg5 {[%clk 0:00:59]} 40. Rb8 {[%clk 0:00:27]}  Bd7 {[%clk 0:00:56]} 41. g3 {[%clk 0:00:16]}  Bb5 {[%clk 0:00:46]} 42. Rb7 {[%clk 0:00:15]}  Rd7 {[%clk 0:00:41]} 43. e4 {[%clk 0:00:14]}  fxe4 {[%clk 0:00:35]} 44. Bxe4 {[%clk 0:00:15]}  g4 {[%clk 0:00:26]} 45. b4 {[%clk 0:00:15]}  Bf1 {[%clk 0:00:19]} 46. Ra7 {[%clk 0:00:12]}  Bb5 {[%clk 0:00:19]} 47. Rb7 {[%clk 0:00:12]}  Ba4 {[%clk 0:00:16]} 48. Kc5 {[%clk 0:00:12]}  Bb5 {[%clk 0:00:16]} 49. Ra7 {[%clk 0:00:10]}  Ke5 {[%clk 0:00:15]} 50. Bg2 {[%clk 0:00:07]}  Rf7 {[%clk 0:00:12]} 51. Ra8 {[%clk 0:00:07]}  Rf2 {[%clk 0:00:12]} 52. Re8+ {[%clk 0:00:07]}  Bxe8 {[%clk 0:00:10]} 53. b5 {[%clk 0:00:05]}  Bxb5 {[%clk 0:00:09]} 0-1


[Site "https://www.chess.com"]

[Event "Titled Tuesday Blitz February 28 Early 2023"]
[White "Cheng, Xiao"]
[Black "Liu, Casper"]
[WhiteFideId "2022915"]
[BlackFideId "1454153"]
[WhiteElo "2473"]
[BlackElo "2221"]
[Result "1-0"]
[Round "10"]
[TimeControl "180+2"]
[Date "2023.02.28"]
[WhiteClock "0:01:45"]
[BlackClock "0:02:05"]

1. e4 {[%clk 0:02:54]}  c5 {[%clk 0:03:00]} 2. Nf3 {[%clk 0:02:54]}  d6 {[%clk 0:03:00]} 3. d4 {[%clk 0:02:54]}  Nf6 {[%clk 0:03:01]} 4. Nc3 {[%clk 0:02:53]}  cxd4 {[%clk 0:03:01]} 5. Nxd4 {[%clk 0:02:53]}  Nc6 {[%clk 0:03:02]} 6. Bc4 {[%clk 0:02:53]}  e6 {[%clk 0:03:02]} 7. Be3 {[%clk 0:02:52]}  Bd7 {[%clk 0:03:03]} 8. Bb3 {[%clk 0:02:51]}  Rc8 {[%clk 0:03:01]} 9. Qe2 {[%clk 0:02:51]}  a6 {[%clk 0:02:59]} 10. O-O-O {[%clk 0:02:49]}  Na5 {[%clk 0:02:59]} 11. Kb1 {[%clk 0:02:48]}  Nxb3 {[%clk 0:02:59]} 12. cxb3 {[%clk 0:02:48]}  Be7 {[%clk 0:03:00]} 13. g4 {[%clk 0:02:47]}  e5 {[%clk 0:02:53]} 14. Nf5 {[%clk 0:02:47]}  g6 {[%clk 0:02:48]} 15. Nxd6+ {[%clk 0:02:41]}  Bxd6 {[%clk 0:02:48]} 16. Rxd6 {[%clk 0:02:41]}  Qe7 {[%clk 0:02:45]} 17. Rhd1 {[%clk 0:02:38]}  Bxg4 {[%clk 0:02:45]} 18. f3 {[%clk 0:02:38]}  Be6 {[%clk 0:02:46]} 19. Bh6 {[%clk 0:02:27]}  Nd5 {[%clk 0:02:28]} 20. Nxd5 {[%clk 0:02:19]}  Qxd6 {[%clk 0:02:28]} 21. Nf6+ {[%clk 0:02:19]}  Ke7 {[%clk 0:02:28]} 22. Rxd6 {[%clk 0:02:18]}  Kxd6 {[%clk 0:02:29]} 23. Nd5 {[%clk 0:02:17]}  Bxd5 {[%clk 0:02:26]} 24. exd5 {[%clk 0:02:17]}  Kxd5 {[%clk 0:02:27]} 25. Qe4+ {[%clk 0:02:15]}  Ke6 {[%clk 0:02:26]} 26. f4 {[%clk 0:02:13]}  Rhd8 {[%clk 0:02:22]} 27. Qxe5+ {[%clk 0:02:12]}  Kd7 {[%clk 0:02:22]} 28. a4 {[%clk 0:02:09]}  Kc6 {[%clk 0:02:20]} 29. f5 {[%clk 0:02:07]}  Rd1+ {[%clk 0:02:20]} 30. Ka2 {[%clk 0:02:06]}  Rcd8 {[%clk 0:02:21]} 31. b4 {[%clk 0:02:01]}  R1d4 {[%clk 0:02:15]} 32. b5+ {[%clk 0:01:58]}  axb5 {[%clk 0:02:12]} 33. Qxb5+ {[%clk 0:01:57]}  Kc7 {[%clk 0:02:12]} 34. Qc5+ {[%clk 0:01:46]}  Kb8 {[%clk 0:02:05]} 35. Bf4+ {[%clk 0:01:45]} 1-0


[Site "https://www.chess.com"]

[Event "Titled Tuesday Blitz February 28 Early 2023"]
[White "Sliwicki, Damian"]
[Black "Goltseva, Ekaterina"]
[WhiteFideId "1127128"]
[BlackFideId "24173770"]
[WhiteElo "1988"]
[BlackElo "2200"]
[Result "1-0"]
[Round "10"]
[TimeControl "180+2"]
[Date "2023.02.28"]
[WhiteClock "0:00:15"]
[BlackClock "0:00:04"]

1. e4 {[%clk 0:03:00]}  c6 {[%clk 0:02:41]} 2. Nc3 {[%clk 0:02:58]}  d5 {[%clk 0:02:41]} 3. Qf3 {[%clk 0:02:57]}  d4 {[%clk 0:02:41]} 4. Bc4 {[%clk 0:02:57]}  e6 {[%clk 0:02:39]} 5. Nce2 {[%clk 0:02:56]}  Nf6 {[%clk 0:02:39]} 6. d3 {[%clk 0:02:55]}  e5 {[%clk 0:02:34]} 7. Qg3 {[%clk 0:02:49]}  Nbd7 {[%clk 0:02:22]} 8. Bg5 {[%clk 0:02:37]}  Be7 {[%clk 0:02:20]} 9. f4 {[%clk 0:02:25]}  h6 {[%clk 0:02:15]} 10. Bxf6 {[%clk 0:02:22]}  Bxf6 {[%clk 0:02:13]} 11. Nf3 {[%clk 0:02:20]}  Qe7 {[%clk 0:02:00]} 12. O-O {[%clk 0:02:08]}  O-O {[%clk 0:01:50]} 13. Rae1 {[%clk 0:01:56]}  b5 {[%clk 0:01:46]} 14. Bb3 {[%clk 0:01:54]}  c5 {[%clk 0:01:46]} 15. Bd5 {[%clk 0:01:49]}  Rb8 {[%clk 0:01:45]} 16. Bc6 {[%clk 0:01:37]}  c4 {[%clk 0:00:47]} 17. Bxd7 {[%clk 0:01:25]}  Qxd7 {[%clk 0:00:47]} 18. fxe5 {[%clk 0:01:23]}  Be7 {[%clk 0:00:46]} 19. e6 {[%clk 0:01:23]}  Qd6 {[%clk 0:00:33]} 20. exf7+ {[%clk 0:01:16]}  Rxf7 {[%clk 0:00:33]} 21. e5 {[%clk 0:01:15]}  Qb6 {[%clk 0:00:30]} 22. Nfxd4 {[%clk 0:01:06]}  Rxf1+ {[%clk 0:00:29]} 23. Rxf1 {[%clk 0:01:06]}  cxd3 {[%clk 0:00:29]} 24. Qxd3 {[%clk 0:00:54]}  Bc5 {[%clk 0:00:25]} 25. Kh1 {[%clk 0:00:52]}  Bb7 {[%clk 0:00:19]} 26. e6 {[%clk 0:00:48]}  Rd8 {[%clk 0:00:15]} 27. Qg6 {[%clk 0:00:37]}  Bxd4 {[%clk 0:00:04]} 28. e7 {[%clk 0:00:37]}  Qxg6 {[%clk 0:00:03]} 29. exd8=Q+ {[%clk 0:00:36]}  Kh7 {[%clk 0:00:04]} 30. Nf4 {[%clk 0:00:30]}  Qe4 {[%clk 0:00:04]} 31. c3 {[%clk 0:00:24]}  Be5 {[%clk 0:00:04]} 32. Qd3 {[%clk 0:00:22]}  Bxf4 {[%clk 0:00:02]} 33. Qxe4+ {[%clk 0:00:21]}  Bxe4 {[%clk 0:00:03]} 34. Rxf4 {[%clk 0:00:22]}  Bd5 {[%clk 0:00:03]} 35. Rf5 {[%clk 0:00:20]}  Bxa2 {[%clk 0:00:03]} 36. Rxb5 {[%clk 0:00:20]}  Bc4 {[%clk 0:00:03]} 37. Rb7 {[%clk 0:00:20]}  a6 {[%clk 0:00:04]} 38. Kg1 {[%clk 0:00:19]}  Kg6 {[%clk 0:00:04]} 39. Rc7 {[%clk 0:00:19]}  Bb5 {[%clk 0:00:04]} 40. c4 {[%clk 0:00:19]}  Ba4 {[%clk 0:00:04]} 41. Kf2 {[%clk 0:00:16]}  Kf6 {[%clk 0:00:01]} 42. Ke3 {[%clk 0:00:15]}  g5 {[%clk 0:00:02]} 43. Rc5 {[%clk 0:00:14]}  Ke6 {[%clk 0:00:02]} 44. Ra5 {[%clk 0:00:13]}  Bb3 {[%clk 0:00:03]} 45. Rxa6+ {[%clk 0:00:13]}  Ke5 {[%clk 0:00:03]} 46. Rxh6 {[%clk 0:00:13]}  Bxc4 {[%clk 0:00:04]} 47. Rh5 {[%clk 0:00:14]}  Kf5 {[%clk 0:00:04]} 48. h4 {[%clk 0:00:14]}  Kg4 {[%clk 0:00:05]} 49. Rxg5+ {[%clk 0:00:15]}  Kxh4 {[%clk 0:00:05]} 50. Rg7 {[%clk 0:00:16]}  Bd5 {[%clk 0:00:05]} 51. Kf4 {[%clk 0:00:15]}  Kh5 {[%clk 0:00:04]} 52. Rg5+ {[%clk 0:00:15]}  Kh6 {[%clk 0:00:04]} 53. Rxd5 {[%clk 0:00:15]} 1-0


[Site "https://www.chess.com"]

[Event "Titled Tuesday Blitz February 28 Early 2023"]
[White "Hoffmann, Asa"]
[Black "Sharapov, Evgeny"]
[WhiteFideId "2001470"]
[BlackFideId "14103133"]
[WhiteElo "2117"]
[BlackElo "2367"]
[Result "1-0"]
[Round "10"]
[TimeControl "180+2"]
[Date "2023.02.28"]
[WhiteClock "0:00:07"]
[BlackClock "0:00:16"]

1. d4 {[%clk 0:02:47]}  Nf6 {[%clk 0:02:58]} 2. Bg5 {[%clk 0:02:44]}  c5 {[%clk 0:02:53]} 3. d5 {[%clk 0:02:43]}  Ne4 {[%clk 0:02:53]} 4. Bc1 {[%clk 0:02:43]}  d6 {[%clk 0:02:49]} 5. f3 {[%clk 0:02:41]}  Nf6 {[%clk 0:02:49]} 6. e4 {[%clk 0:02:40]}  g6 {[%clk 0:02:49]} 7. Nc3 {[%clk 0:02:39]}  Bg7 {[%clk 0:02:49]} 8. Be3 {[%clk 0:02:38]}  O-O {[%clk 0:02:49]} 9. Qd2 {[%clk 0:02:38]}  a6 {[%clk 0:02:46]} 10. Bh6 {[%clk 0:02:38]}  b5 {[%clk 0:02:45]} 11. h4 {[%clk 0:02:37]}  b4 {[%clk 0:02:41]} 12. Nce2 {[%clk 0:02:30]}  e6 {[%clk 0:02:41]} 13. dxe6 {[%clk 0:02:25]}  Bxe6 {[%clk 0:02:40]} 14. Bxg7 {[%clk 0:02:21]}  Kxg7 {[%clk 0:02:40]} 15. h5 {[%clk 0:02:20]}  Nbd7 {[%clk 0:02:33]} 16. Nf4 {[%clk 0:02:12]}  Qe7 {[%clk 0:02:27]} 17. hxg6 {[%clk 0:02:06]}  fxg6 {[%clk 0:02:26]} 18. O-O-O {[%clk 0:01:57]}  Bxa2 {[%clk 0:02:23]} 19. Qxd6 {[%clk 0:01:56]}  Qxd6 {[%clk 0:02:19]} 20. Rxd6 {[%clk 0:01:56]}  Bg8 {[%clk 0:02:14]} 21. Ngh3 {[%clk 0:01:46]}  a5 {[%clk 0:02:07]} 22. Ng5 {[%clk 0:01:45]}  Rfb8 {[%clk 0:01:46]} 23. Nfe6+ {[%clk 0:01:35]}  Bxe6 {[%clk 0:01:45]} 24. Nxe6+ {[%clk 0:01:35]}  Kf7 {[%clk 0:01:43]} 25. Bc4 {[%clk 0:01:33]}  Ke7 {[%clk 0:01:43]} 26. Rhd1 {[%clk 0:01:30]}  Ne5 {[%clk 0:01:38]} 27. Be2 {[%clk 0:01:20]}  Nh5 {[%clk 0:01:26]} 28. Nc7 {[%clk 0:01:17]}  Nf4 {[%clk 0:01:11]} 29. Bf1 {[%clk 0:01:09]}  Ra7 {[%clk 0:01:06]} 30. Na6 {[%clk 0:01:06]}  Rc8 {[%clk 0:00:58]} 31. g3 {[%clk 0:01:05]}  Ne6 {[%clk 0:00:54]} 32. f4 {[%clk 0:01:04]}  Ng4 {[%clk 0:00:52]} 33. Bb5 {[%clk 0:00:51]}  Nd4 {[%clk 0:00:50]} 34. Rb6 {[%clk 0:00:40]}  Nxb5 {[%clk 0:00:46]} 35. Rxb5 {[%clk 0:00:38]}  Rxa6 {[%clk 0:00:45]} 36. Rb7+ {[%clk 0:00:38]}  Kf6 {[%clk 0:00:40]} 37. Rxh7 {[%clk 0:00:32]}  a4 {[%clk 0:00:36]} 38. e5+ {[%clk 0:00:31]}  Kf5 {[%clk 0:00:35]} 39. Rf7+ {[%clk 0:00:31]}  Ke4 {[%clk 0:00:35]} 40. Re1+ {[%clk 0:00:29]}  Kf3 {[%clk 0:00:34]} 41. e6 {[%clk 0:00:29]}  a3 {[%clk 0:00:31]} 42. bxa3 {[%clk 0:00:28]}  bxa3 {[%clk 0:00:32]} 43. e7 {[%clk 0:00:25]}  a2 {[%clk 0:00:32]} 44. Kb2 {[%clk 0:00:24]}  Re8 {[%clk 0:00:24]} 45. Ka1 {[%clk 0:00:22]}  Ne3 {[%clk 0:00:24]} 46. Rc1 {[%clk 0:00:14]}  Nd5 {[%clk 0:00:23]} 47. f5 {[%clk 0:00:13]}  Rxe7 {[%clk 0:00:22]} 48. fxg6+ {[%clk 0:00:12]}  Kxg3 {[%clk 0:00:20]} 49. g7 {[%clk 0:00:11]}  Rg6 {[%clk 0:00:20]} 50. Rg1+ {[%clk 0:00:10]}  Kh2 {[%clk 0:00:19]} 51. Rxg6 {[%clk 0:00:09]}  Rxf7 {[%clk 0:00:17]} 52. g8=Q {[%clk 0:00:08]}  Rf1+ {[%clk 0:00:16]} 53. Kxa2 {[%clk 0:00:07]}  Nb4+ {[%clk 0:00:17]} 54. Kb3 {[%clk 0:00:07]}  Rf3+ {[%clk 0:00:16]} 55. Kc4 {[%clk 0:00:07]} 1-0


[Site "https://www.chess.com"]

[Event "Titled Tuesday Blitz February 28 Early 2023"]
[White "Jiganchine, Roman"]
[Black "Chernomordik, Pavel"]
[WhiteFideId "2603667"]
[BlackFideId "2804530"]
[WhiteElo "2295"]
[BlackElo "2193"]
[Result "0-1"]
[Round "10"]
[TimeControl "180+2"]
[Date "2023.02.28"]
[WhiteClock "0:00:17"]
[BlackClock "0:01:03"]

1. e4 {[%clk 0:02:59]}  g6 {[%clk 0:03:00]} 2. d4 {[%clk 0:02:57]}  Bg7 {[%clk 0:03:00]} 3. Nc3 {[%clk 0:02:57]}  d6 {[%clk 0:03:00]} 4. Be3 {[%clk 0:02:57]}  a6 {[%clk 0:03:01]} 5. Qd2 {[%clk 0:02:48]}  b5 {[%clk 0:03:00]} 6. h4 {[%clk 0:02:45]}  h6 {[%clk 0:02:58]} 7. f4 {[%clk 0:02:43]}  h5 {[%clk 0:02:54]} 8. Nf3 {[%clk 0:02:40]}  Nf6 {[%clk 0:02:53]} 9. e5 {[%clk 0:02:36]}  Ng4 {[%clk 0:02:49]} 10. Bg1 {[%clk 0:02:35]}  Nd7 {[%clk 0:02:42]} 11. e6 {[%clk 0:02:22]}  fxe6 {[%clk 0:02:41]} 12. Bd3 {[%clk 0:02:22]}  Nf8 {[%clk 0:02:36]} 13. O-O-O {[%clk 0:02:18]}  Bb7 {[%clk 0:02:34]} 14. Ng5 {[%clk 0:02:13]}  Qd7 {[%clk 0:02:21]} 15. a4 {[%clk 0:01:57]}  b4 {[%clk 0:02:20]} 16. Nce4 {[%clk 0:01:53]}  Qxa4 {[%clk 0:02:19]} 17. Kb1 {[%clk 0:01:47]}  O-O-O {[%clk 0:02:09]} 18. Nf7 {[%clk 0:01:43]}  Nd7 {[%clk 0:02:02]} 19. Neg5 {[%clk 0:01:34]}  Bd5 {[%clk 0:01:59]} 20. b3 {[%clk 0:01:27]}  Qa5 {[%clk 0:01:49]} 21. Qe2 {[%clk 0:01:16]}  Kb7 {[%clk 0:01:38]} 22. Nxh8 {[%clk 0:01:15]}  Rxh8 {[%clk 0:01:32]} 23. Nxe6 {[%clk 0:01:12]}  Bf6 {[%clk 0:01:26]} 24. Bxg6 {[%clk 0:01:00]}  c5 {[%clk 0:01:22]} 25. Be4 {[%clk 0:00:59]}  Nb6 {[%clk 0:01:19]} 26. Bxd5+ {[%clk 0:00:56]}  Nxd5 {[%clk 0:01:19]} 27. Qe4 {[%clk 0:00:56]}  cxd4 {[%clk 0:01:10]} 28. f5 {[%clk 0:00:26]}  Kb8 {[%clk 0:01:06]} 29. Bxd4 {[%clk 0:00:23]}  Nc3+ {[%clk 0:01:04]} 30. Bxc3 {[%clk 0:00:17]}  Bxc3 {[%clk 0:01:03]} 0-1


[Site "https://www.chess.com"]

[Event "Titled Tuesday Blitz February 28 Early 2023"]
[White "Buchenau, Frank"]
[Black "Kaufman, Raymond"]
[WhiteFideId "4604350"]
[BlackFideId "2015056"]
[WhiteElo "2157"]
[BlackElo "2321"]
[Result "1-0"]
[Round "10"]
[TimeControl "180+2"]
[Date "2023.02.28"]
[WhiteClock "0:00:02"]
[BlackClock "0:00:01"]

1. e4 {[%clk 0:03:00]}  e5 {[%clk 0:02:58]} 2. Nf3 {[%clk 0:02:59]}  Nc6 {[%clk 0:02:59]} 3. Bc4 {[%clk 0:02:57]}  Bc5 {[%clk 0:02:57]} 4. c3 {[%clk 0:02:57]}  Nf6 {[%clk 0:02:57]} 5. d3 {[%clk 0:02:57]}  d6 {[%clk 0:02:56]} 6. O-O {[%clk 0:02:56]}  O-O {[%clk 0:02:51]} 7. Nbd2 {[%clk 0:02:56]}  a5 {[%clk 0:02:49]} 8. h3 {[%clk 0:02:50]}  Ba7 {[%clk 0:02:44]} 9. Re1 {[%clk 0:02:49]}  Be6 {[%clk 0:02:40]} 10. Bb5 {[%clk 0:02:47]}  Ne7 {[%clk 0:02:38]} 11. Nf1 {[%clk 0:02:46]}  c6 {[%clk 0:02:33]} 12. Ba4 {[%clk 0:02:45]}  Ng6 {[%clk 0:02:33]} 13. Ng3 {[%clk 0:02:40]}  d5 {[%clk 0:02:30]} 14. exd5 {[%clk 0:02:33]}  Nxd5 {[%clk 0:02:20]} 15. d4 {[%clk 0:02:20]}  Ndf4 {[%clk 0:01:40]} 16. Nxe5 {[%clk 0:02:13]}  Nxe5 {[%clk 0:01:29]} 17. Bxf4 {[%clk 0:02:09]}  Nc4 {[%clk 0:01:21]} 18. Bc2 {[%clk 0:01:41]}  Qh4 {[%clk 0:01:14]} 19. Bc1 {[%clk 0:01:16]}  Rfe8 {[%clk 0:01:07]} 20. Re4 {[%clk 0:01:15]}  Qd8 {[%clk 0:00:55]} 21. Qd3 {[%clk 0:01:13]}  g6 {[%clk 0:00:53]} 22. Rxe6 {[%clk 0:01:11]}  Rxe6 {[%clk 0:00:51]} 23. Qxc4 {[%clk 0:01:11]}  Re1+ {[%clk 0:00:51]} 24. Nf1 {[%clk 0:01:01]}  Qd6 {[%clk 0:00:50]} 25. Rb1 {[%clk 0:00:47]}  Rae8 {[%clk 0:00:49]} 26. Bd2 {[%clk 0:00:38]}  Rxb1 {[%clk 0:00:43]} 27. Bxb1 {[%clk 0:00:38]}  Bb8 {[%clk 0:00:42]} 28. Be3 {[%clk 0:00:35]}  b5 {[%clk 0:00:38]} 29. Qc5 {[%clk 0:00:34]}  Qxc5 {[%clk 0:00:31]} 30. dxc5 {[%clk 0:00:34]}  b4 {[%clk 0:00:32]} 31. cxb4 {[%clk 0:00:29]}  axb4 {[%clk 0:00:33]} 32. Bc2 {[%clk 0:00:28]}  Be5 {[%clk 0:00:32]} 33. Ba4 {[%clk 0:00:25]}  Ra8 {[%clk 0:00:30]} 34. b3 {[%clk 0:00:24]}  Kf8 {[%clk 0:00:24]} 35. Nd2 {[%clk 0:00:23]}  Bc3 {[%clk 0:00:22]} 36. Ne4 {[%clk 0:00:23]}  Ke7 {[%clk 0:00:22]} 37. Kf1 {[%clk 0:00:22]}  f5 {[%clk 0:00:21]} 38. Nxc3 {[%clk 0:00:21]}  bxc3 {[%clk 0:00:22]} 39. Ke2 {[%clk 0:00:21]}  Rd8 {[%clk 0:00:18]} 40. b4 {[%clk 0:00:18]}  Ra8 {[%clk 0:00:16]} 41. Bb3 {[%clk 0:00:17]}  Rb8 {[%clk 0:00:17]} 42. a3 {[%clk 0:00:17]}  Ra8 {[%clk 0:00:17]} 43. Kd3 {[%clk 0:00:17]}  Rxa3 {[%clk 0:00:17]} 44. Kxc3 {[%clk 0:00:17]}  Ra1 {[%clk 0:00:16]} 45. Bc4 {[%clk 0:00:16]}  Rb1 {[%clk 0:00:15]} 46. Bd2 {[%clk 0:00:14]}  Kf6 {[%clk 0:00:14]} 47. Bf4 {[%clk 0:00:14]}  g5 {[%clk 0:00:14]} 48. Bd6 {[%clk 0:00:14]}  h5 {[%clk 0:00:13]} 49. Bd3 {[%clk 0:00:14]}  Ra1 {[%clk 0:00:12]} 50. b5 {[%clk 0:00:14]}  Ra3+ {[%clk 0:00:10]} 51. Kc2 {[%clk 0:00:13]}  cxb5 {[%clk 0:00:10]} 52. Bxb5 {[%clk 0:00:12]}  Ke6 {[%clk 0:00:10]} 53. Bc7 {[%clk 0:00:10]}  Ra2+ {[%clk 0:00:09]} 54. Kb3 {[%clk 0:00:10]}  Rxf2 {[%clk 0:00:09]} 55. c6 {[%clk 0:00:09]}  Rxg2 {[%clk 0:00:08]} 56. Bb6 {[%clk 0:00:08]}  Rg3+ {[%clk 0:00:08]} 57. Kc4 {[%clk 0:00:08]}  Rg2 {[%clk 0:00:06]} 58. Bd4 {[%clk 0:00:07]}  Rc2+ {[%clk 0:00:05]} 59. Bc3 {[%clk 0:00:06]}  Kd6 {[%clk 0:00:05]} 60. Ba4 {[%clk 0:00:07]}  Rc1 {[%clk 0:00:04]} 61. Kd3 {[%clk 0:00:06]}  Kc7 {[%clk 0:00:03]} 62. Bd2 {[%clk 0:00:05]}  Ra1 {[%clk 0:00:01]} 63. Bb5 {[%clk 0:00:03]}  Ra3+ {[%clk 0:00:01]} 64. Kc4 {[%clk 0:00:04]}  g4 {[%clk 0:00:02]} 65. Bf4+ {[%clk 0:00:04]}  Kc8 {[%clk 0:00:01]} 66. c7 {[%clk 0:00:04]}  g3 {[%clk 0:00:01]} 67. Kc5 {[%clk 0:00:02]} 1-0


[Site "https://www.chess.com"]